[Event "Titled Tuesday Blitz February 28 Late 2023"]
[White "Pichot, Alan"]
[Black "Vachier-Lagrave, Maxime"]
[WhiteFideId "110973"]
[BlackFideId "623539"]
[WhiteElo "2573"]
[BlackElo "2740"]
[Result "0-1"]
[Round "03"]
[TimeControl "180+2"]
[Date "2023.02.28"]
[WhiteClock "0:00:10"]
[BlackClock "0:00:37"]

1. e4 {[%clk 0:02:58]}  c5 {[%clk 0:02:58]} 2. Nf3 {[%clk 0:02:58]}  d6 {[%clk 0:02:58]} 3. Bb5+ {[%clk 0:02:56]}  Nd7 {[%clk 0:02:57]} 4. a4 {[%clk 0:02:56]}  a6 {[%clk 0:02:54]} 5. Be2 {[%clk 0:02:54]}  g6 {[%clk 0:02:54]} 6. a5 {[%clk 0:02:51]}  Bg7 {[%clk 0:02:53]} 7. Nc3 {[%clk 0:02:52]}  Ngf6 {[%clk 0:02:53]} 8. O-O {[%clk 0:02:52]}  O-O {[%clk 0:02:53]} 9. d3 {[%clk 0:02:53]}  b5 {[%clk 0:02:53]} 10. axb6 {[%clk 0:02:53]}  Nxb6 {[%clk 0:02:53]} 11. h3 {[%clk 0:02:53]}  Bb7 {[%clk 0:02:44]} 12. Be3 {[%clk 0:02:50]}  Qc7 {[%clk 0:02:44]} 13. Qd2 {[%clk 0:02:48]}  d5 {[%clk 0:02:31]} 14. Bf4 {[%clk 0:02:42]}  Qc6 {[%clk 0:02:31]} 15. e5 {[%clk 0:02:40]}  d4 {[%clk 0:02:24]} 16. exf6 {[%clk 0:02:33]}  dxc3 {[%clk 0:02:24]} 17. bxc3 {[%clk 0:02:34]}  Bxf6 {[%clk 0:02:22]} 18. Rab1 {[%clk 0:02:33]}  a5 {[%clk 0:02:08]} 19. Ne1 {[%clk 0:02:07]}  Ra6 {[%clk 0:01:47]} 20. Bf3 {[%clk 0:02:05]}  Qd7 {[%clk 0:01:45]} 21. Bxb7 {[%clk 0:01:48]}  Qxb7 {[%clk 0:01:46]} 22. Nf3 {[%clk 0:01:48]}  a4 {[%clk 0:01:45]} 23. Be5 {[%clk 0:01:46]}  a3 {[%clk 0:01:41]} 24. Rb3 {[%clk 0:01:42]}  Bxe5 {[%clk 0:01:20]} 25. Nxe5 {[%clk 0:01:43]}  Qc7 {[%clk 0:01:15]} 26. Qe3 {[%clk 0:01:36]}  c4 {[%clk 0:01:12]} 27. Nxc4 {[%clk 0:00:58]}  Nxc4 {[%clk 0:01:13]} 28. dxc4 {[%clk 0:00:59]}  Qxc4 {[%clk 0:01:13]} 29. Ra1 {[%clk 0:00:54]}  a2 {[%clk 0:01:00]} 30. Qxe7 {[%clk 0:00:54]}  Rfa8 {[%clk 0:00:51]} 31. Qb4 {[%clk 0:00:51]}  Qe2 {[%clk 0:00:50]} 32. Rb2 {[%clk 0:00:45]}  Rd8 {[%clk 0:00:36]} 33. Raxa2 {[%clk 0:00:26]}  Rf6 {[%clk 0:00:36]} 34. Qc5 {[%clk 0:00:19]}  Rxf2 {[%clk 0:00:35]} 35. Qg5 {[%clk 0:00:11]}  Rxg2+ {[%clk 0:00:36]} 36. Qxg2 {[%clk 0:00:10]}  Rd1+ {[%clk 0:00:36]} 37. Kh2 {[%clk 0:00:10]}  Qe5+ {[%clk 0:00:37]} 0-1


[Site "https://www.chess.com"]

[Event "Titled Tuesday Blitz February 28 Late 2023"]
[White "Firouzja, Alireza"]
[Black "Mendonca, Leon Luke"]
[WhiteFideId "12573981"]
[BlackFideId "35028561"]
[WhiteElo "2904"]
[BlackElo "2464"]
[Result "1-0"]
[Round "03"]
[TimeControl "180+2"]
[Date "2023.02.28"]
[WhiteClock "0:00:15"]
[BlackClock "0:00:04"]

1. d4 {[%clk 0:02:52]}  Nf6 {[%clk 0:02:58]} 2. c4 {[%clk 0:02:48]}  e6 {[%clk 0:02:56]} 3. a3 {[%clk 0:02:46]}  c5 {[%clk 0:02:49]} 4. d5 {[%clk 0:02:46]}  exd5 {[%clk 0:02:50]} 5. cxd5 {[%clk 0:02:47]}  g6 {[%clk 0:02:50]} 6. Nc3 {[%clk 0:02:47]}  Bg7 {[%clk 0:02:50]} 7. e4 {[%clk 0:02:47]}  d6 {[%clk 0:02:50]} 8. f3 {[%clk 0:02:47]}  Nbd7 {[%clk 0:02:47]} 9. Nge2 {[%clk 0:02:45]}  a6 {[%clk 0:02:45]} 10. a4 {[%clk 0:02:44]}  O-O {[%clk 0:02:36]} 11. Ng3 {[%clk 0:02:44]}  h5 {[%clk 0:02:30]} 12. Bg5 {[%clk 0:02:28]}  Qb6 {[%clk 0:02:23]} 13. Qd2 {[%clk 0:02:28]}  Nh7 {[%clk 0:02:23]} 14. a5 {[%clk 0:02:28]}  Qc7 {[%clk 0:02:20]} 15. Bh6 {[%clk 0:02:25]}  h4 {[%clk 0:02:19]} 16. Bxg7 {[%clk 0:02:20]}  Kxg7 {[%clk 0:02:17]} 17. Nge2 {[%clk 0:02:20]}  Ne5 {[%clk 0:02:16]} 18. Nf4 {[%clk 0:02:19]}  Qe7 {[%clk 0:01:54]} 19. Be2 {[%clk 0:02:19]}  f5 {[%clk 0:01:41]} 20. O-O {[%clk 0:02:15]}  Ng5 {[%clk 0:01:32]} 21. exf5 {[%clk 0:01:57]}  Bxf5 {[%clk 0:01:32]} 22. Rae1 {[%clk 0:01:49]}  Rae8 {[%clk 0:01:27]} 23. h3 {[%clk 0:01:49]}  Qf6 {[%clk 0:01:25]} 24. Ne4 {[%clk 0:01:26]}  Bxe4 {[%clk 0:01:03]} 25. fxe4 {[%clk 0:01:27]}  Nxe4 {[%clk 0:00:59]} 26. Qe3 {[%clk 0:01:08]}  Ng3 {[%clk 0:00:54]} 27. Nh5+ {[%clk 0:00:51]}  gxh5 {[%clk 0:00:52]} 28. Rxf6 {[%clk 0:00:51]}  Rxf6 {[%clk 0:00:53]} 29. Qc3 {[%clk 0:00:26]}  Ref8 {[%clk 0:00:38]} 30. Bf3 {[%clk 0:00:24]}  Rf5 {[%clk 0:00:33]} 31. Re3 {[%clk 0:00:22]}  Kg8 {[%clk 0:00:30]} 32. Qb3 {[%clk 0:00:19]}  R8f7 {[%clk 0:00:30]} 33. Qb6 {[%clk 0:00:18]}  R5f6 {[%clk 0:00:28]} 34. Qd8+ {[%clk 0:00:16]}  Rf8 {[%clk 0:00:27]} 35. Qe7 {[%clk 0:00:16]}  R8f7 {[%clk 0:00:28]} 36. Qe8+ {[%clk 0:00:16]}  Kg7 {[%clk 0:00:27]} 37. Rxe5 {[%clk 0:00:15]}  dxe5 {[%clk 0:00:27]} 38. Qxe5 {[%clk 0:00:16]}  Kg6 {[%clk 0:00:23]} 39. d6 {[%clk 0:00:15]}  Rf5 {[%clk 0:00:24]} 40. Qe6+ {[%clk 0:00:15]}  R5f6 {[%clk 0:00:22]} 41. Qe5 {[%clk 0:00:15]}  Rf5 {[%clk 0:00:22]} 42. Qe8 {[%clk 0:00:15]}  Rd5 {[%clk 0:00:04]} 43. Bxd5 {[%clk 0:00:15]} 1-0


[Site "https://www.chess.com"]

[Event "Titled Tuesday Blitz February 28 Late 2023"]
[White "Maximov, Dmitry"]
[Black "Duda, Jan-Krzysztof"]
[WhiteFideId "14105659"]
[BlackFideId "1170546"]
[WhiteElo "2494"]
[BlackElo "2790"]
[Result "0-1"]
[Round "03"]
[TimeControl "180+2"]
[Date "2023.02.28"]
[WhiteClock "0:00:06"]
[BlackClock "0:00:07"]

1. e4 {[%clk 0:03:00]}  Nc6 {[%clk 0:03:00]} 2. Nf3 {[%clk 0:02:59]}  e5 {[%clk 0:03:00]} 3. Bb5 {[%clk 0:02:59]}  a6 {[%clk 0:02:58]} 4. Ba4 {[%clk 0:02:59]}  d6 {[%clk 0:02:58]} 5. O-O {[%clk 0:02:58]}  Bd7 {[%clk 0:02:58]} 6. Re1 {[%clk 0:02:57]}  g5 {[%clk 0:02:57]} 7. Bxc6 {[%clk 0:02:51]}  bxc6 {[%clk 0:02:55]} 8. d4 {[%clk 0:02:41]}  g4 {[%clk 0:02:56]} 9. Nfd2 {[%clk 0:02:41]}  exd4 {[%clk 0:02:56]} 10. c3 {[%clk 0:02:40]}  dxc3 {[%clk 0:02:45]} 11. Nxc3 {[%clk 0:02:40]}  Ne7 {[%clk 0:02:43]} 12. Nc4 {[%clk 0:02:26]}  Bg7 {[%clk 0:02:36]} 13. Bg5 {[%clk 0:02:06]}  f6 {[%clk 0:02:33]} 14. e5 {[%clk 0:01:31]}  fxe5 {[%clk 0:02:17]} 15. Nxd6+ {[%clk 0:01:12]}  cxd6 {[%clk 0:02:18]} 16. Qxd6 {[%clk 0:01:12]}  Bf5 {[%clk 0:02:03]} 17. Qc5 {[%clk 0:00:55]}  Qc7 {[%clk 0:02:00]} 18. Rad1 {[%clk 0:00:48]}  Kf7 {[%clk 0:01:45]} 19. Rd6 {[%clk 0:00:40]}  Rhd8 {[%clk 0:01:35]} 20. Red1 {[%clk 0:00:34]}  Rxd6 {[%clk 0:01:34]} 21. Rxd6 {[%clk 0:00:34]}  Rd8 {[%clk 0:01:29]} 22. Qc4+ {[%clk 0:00:32]}  Kf8 {[%clk 0:01:17]} 23. Bxe7+ {[%clk 0:00:15]}  Qxe7 {[%clk 0:01:15]} 24. Rxc6 {[%clk 0:00:16]}  Qf7 {[%clk 0:01:04]} 25. Qc5+ {[%clk 0:00:15]}  Kg8 {[%clk 0:01:05]} 26. Rxa6 {[%clk 0:00:15]}  Bf8 {[%clk 0:00:55]} 27. Qe3 {[%clk 0:00:15]}  Bg6 {[%clk 0:00:49]} 28. g3 {[%clk 0:00:12]}  Qb7 {[%clk 0:00:20]} 29. Rb6 {[%clk 0:00:11]}  Qf3 {[%clk 0:00:19]} 30. Qxe5 {[%clk 0:00:08]}  Bc5 {[%clk 0:00:08]} 31. Qe6+ {[%clk 0:00:05]}  Kf8 {[%clk 0:00:08]} 32. Qf6+ {[%clk 0:00:05]}  Qxf6 {[%clk 0:00:07]} 33. Rxf6+ {[%clk 0:00:06]}  Kg7 {[%clk 0:00:07]} 34. Rf4 {[%clk 0:00:06]}  Rd4 {[%clk 0:00:05]} 35. Rxd4 {[%clk 0:00:05]}  Bxd4 {[%clk 0:00:06]} 36. a4 {[%clk 0:00:05]}  Bxc3 {[%clk 0:00:04]} 37. bxc3 {[%clk 0:00:05]}  Bd3 {[%clk 0:00:04]} 38. a5 {[%clk 0:00:06]}  Kf6 {[%clk 0:00:04]} 39. h3 {[%clk 0:00:05]}  h5 {[%clk 0:00:01]} 40. hxg4 {[%clk 0:00:06]}  hxg4 {[%clk 0:00:02]} 41. Kg2 {[%clk 0:00:02]}  Be4+ {[%clk 0:00:02]} 42. Kf1 {[%clk 0:00:03]}  Bf3 {[%clk 0:00:02]} 43. Ke1 {[%clk 0:00:03]}  Ke5 {[%clk 0:00:02]} 44. Kd2 {[%clk 0:00:03]}  Kd5 {[%clk 0:00:03]} 45. Ke3 {[%clk 0:00:03]}  Kc4 {[%clk 0:00:03]} 46. Kd2 {[%clk 0:00:04]}  Kb5 {[%clk 0:00:03]} 47. Kd3 {[%clk 0:00:03]}  Kxa5 {[%clk 0:00:04]} 48. Kd4 {[%clk 0:00:03]}  Kb6 {[%clk 0:00:04]} 49. c4 {[%clk 0:00:04]}  Kc6 {[%clk 0:00:04]} 50. c5 {[%clk 0:00:04]}  Bd5 {[%clk 0:00:04]} 51. Ke5 {[%clk 0:00:04]}  Kxc5 {[%clk 0:00:04]} 52. Kf4 {[%clk 0:00:05]}  Bf3 {[%clk 0:00:05]} 53. Kg5 {[%clk 0:00:05]}  Kd4 {[%clk 0:00:05]} 54. Kf4 {[%clk 0:00:05]}  Kd3 {[%clk 0:00:06]} 55. Kg5 {[%clk 0:00:05]}  Ke2 {[%clk 0:00:07]} 56. Kf4 {[%clk 0:00:06]}  Kxf2 {[%clk 0:00:07]} 0-1


[Site "https://www.chess.com"]

[Event "Titled Tuesday Blitz February 28 Late 2023"]
[White "Milikow, Yoav"]
[Black "Grischuk, Alexander"]
[WhiteFideId "2822237"]
[BlackFideId "4126025"]
[WhiteElo "2410"]
[BlackElo "2727"]
[Result "0-1"]
[Round "03"]
[TimeControl "180+2"]
[Date "2023.02.28"]
[WhiteClock "0:00:06"]
[BlackClock "0:00:03"]

1. d4 {[%clk 0:03:00]}  e6 {[%clk 0:02:59]} 2. c4 {[%clk 0:03:01]}  b6 {[%clk 0:03:00]} 3. e4 {[%clk 0:03:00]}  Bb4+ {[%clk 0:03:00]} 4. Bd2 {[%clk 0:03:00]}  Bxd2+ {[%clk 0:03:00]} 5. Nxd2 {[%clk 0:02:58]}  d6 {[%clk 0:02:46]} 6. Ngf3 {[%clk 0:02:57]}  Nf6 {[%clk 0:02:41]} 7. Be2 {[%clk 0:02:55]}  O-O {[%clk 0:02:36]} 8. O-O {[%clk 0:02:55]}  Qe7 {[%clk 0:02:32]} 9. Re1 {[%clk 0:02:54]}  e5 {[%clk 0:02:29]} 10. d5 {[%clk 0:02:46]}  a5 {[%clk 0:02:27]} 11. b3 {[%clk 0:02:40]}  Na6 {[%clk 0:02:25]} 12. a3 {[%clk 0:02:39]}  Bd7 {[%clk 0:02:16]} 13. Qb1 {[%clk 0:02:38]}  Nh5 {[%clk 0:02:04]} 14. b4 {[%clk 0:01:49]}  Nf4 {[%clk 0:02:02]} 15. Bf1 {[%clk 0:01:48]}  f5 {[%clk 0:02:03]} 16. Re3 {[%clk 0:01:45]}  Kh8 {[%clk 0:01:53]} 17. Qb2 {[%clk 0:01:40]}  Qf6 {[%clk 0:01:41]} 18. Rae1 {[%clk 0:01:37]}  g5 {[%clk 0:01:11]} 19. g3 {[%clk 0:01:03]}  Ng6 {[%clk 0:00:59]} 20. exf5 {[%clk 0:01:00]}  Bxf5 {[%clk 0:01:00]} 21. h3 {[%clk 0:00:43]}  h5 {[%clk 0:00:47]} 22. Nh2 {[%clk 0:00:32]}  Qg7 {[%clk 0:00:18]} 23. Ne4 {[%clk 0:00:27]}  Nf4 {[%clk 0:00:16]} 24. g4 {[%clk 0:00:24]}  hxg4 {[%clk 0:00:12]} 25. hxg4 {[%clk 0:00:25]}  Bxe4 {[%clk 0:00:12]} 26. Rxe4 {[%clk 0:00:26]}  axb4 {[%clk 0:00:11]} 27. axb4 {[%clk 0:00:26]}  Nb8 {[%clk 0:00:12]} 28. Ra1 {[%clk 0:00:23]}  Rxa1 {[%clk 0:00:10]} 29. Qxa1 {[%clk 0:00:24]}  Nd7 {[%clk 0:00:11]} 30. Qa3 {[%clk 0:00:22]}  Nf6 {[%clk 0:00:11]} 31. Re1 {[%clk 0:00:22]}  Qh7 {[%clk 0:00:09]} 32. Qg3 {[%clk 0:00:20]}  Kg7 {[%clk 0:00:08]} 33. Ra1 {[%clk 0:00:13]}  Ne4 {[%clk 0:00:06]} 34. Qf3 {[%clk 0:00:06]}  Rh8 {[%clk 0:00:06]} 35. Qh1 {[%clk 0:00:06]}  Qh4 {[%clk 0:00:05]} 36. Ra2 {[%clk 0:00:07]}  Ng3 {[%clk 0:00:03]} 37. fxg3 {[%clk 0:00:05]}  Qxg3+ {[%clk 0:00:04]} 38. Bg2 {[%clk 0:00:06]}  Qe1+ {[%clk 0:00:03]} 39. Bf1 {[%clk 0:00:06]}  Qe3+ {[%clk 0:00:03]} 40. Rf2 {[%clk 0:00:07]}  Qg3+ {[%clk 0:00:03]} 41. Rg2 {[%clk 0:00:06]}  Nh3# {[%clk 0:00:03]} 0-1


[Site "https://www.chess.com"]

[Event "Titled Tuesday Blitz February 28 Late 2023"]
[White "Martinez Alcantara, Jose Eduardo"]
[Black "Pakleza, Zbigniew"]
[WhiteFideId "3805662"]
[BlackFideId "1119290"]
[WhiteElo "2712"]
[BlackElo "2410"]
[Result "1-0"]
[Round "03"]
[TimeControl "180+2"]
[Date "2023.02.28"]
[WhiteClock "0:00:30"]
[BlackClock "0:00:03"]

1. e4 {[%clk 0:02:52]}  d5 {[%clk 0:03:00]} 2. exd5 {[%clk 0:02:51]}  Nf6 {[%clk 0:03:00]} 3. d4 {[%clk 0:02:50]}  Nxd5 {[%clk 0:03:01]} 4. Nf3 {[%clk 0:02:44]}  Bg4 {[%clk 0:02:58]} 5. Be2 {[%clk 0:02:42]}  Nc6 {[%clk 0:02:58]} 6. O-O {[%clk 0:02:36]}  e6 {[%clk 0:02:58]} 7. h3 {[%clk 0:02:35]}  Bh5 {[%clk 0:02:58]} 8. Nbd2 {[%clk 0:02:31]}  Be7 {[%clk 0:02:57]} 9. c3 {[%clk 0:02:32]}  O-O {[%clk 0:02:57]} 10. Nc4 {[%clk 0:02:31]}  Re8 {[%clk 0:02:53]} 11. Nfe5 {[%clk 0:02:28]}  Bxe2 {[%clk 0:02:53]} 12. Qxe2 {[%clk 0:02:29]}  Nxe5 {[%clk 0:02:52]} 13. Nxe5 {[%clk 0:02:29]}  c6 {[%clk 0:02:32]} 14. c4 {[%clk 0:02:26]}  Nf6 {[%clk 0:02:28]} 15. Rd1 {[%clk 0:02:21]}  a6 {[%clk 0:02:12]} 16. b3 {[%clk 0:02:18]}  Nd7 {[%clk 0:02:09]} 17. Nf3 {[%clk 0:02:17]}  Qc7 {[%clk 0:02:04]} 18. Bb2 {[%clk 0:02:16]}  Bf6 {[%clk 0:02:01]} 19. Re1 {[%clk 0:02:08]}  h6 {[%clk 0:01:58]} 20. Rad1 {[%clk 0:02:08]}  a5 {[%clk 0:01:55]} 21. Qc2 {[%clk 0:01:59]}  Rec8 {[%clk 0:01:46]} 22. Nd2 {[%clk 0:01:52]}  Re8 {[%clk 0:01:37]} 23. Ne4 {[%clk 0:01:50]}  Be7 {[%clk 0:01:38]} 24. a4 {[%clk 0:01:50]}  Nf6 {[%clk 0:01:34]} 25. Nd2 {[%clk 0:01:42]}  Rac8 {[%clk 0:01:18]} 26. Nf3 {[%clk 0:01:40]}  b5 {[%clk 0:01:12]} 27. Re3 {[%clk 0:01:28]}  bxa4 {[%clk 0:01:11]} 28. bxa4 {[%clk 0:01:28]}  Rb8 {[%clk 0:00:58]} 29. Bc3 {[%clk 0:01:29]}  Bb4 {[%clk 0:00:56]} 30. Ba1 {[%clk 0:01:29]}  Qf4 {[%clk 0:00:47]} 31. Qe2 {[%clk 0:01:22]}  c5 {[%clk 0:00:38]} 32. d5 {[%clk 0:01:11]}  exd5 {[%clk 0:00:27]} 33. Be5 {[%clk 0:01:11]}  Rxe5 {[%clk 0:00:27]} 34. Nxe5 {[%clk 0:01:12]}  d4 {[%clk 0:00:21]} 35. Nd3 {[%clk 0:01:09]}  Qf5 {[%clk 0:00:15]} 36. Re5 {[%clk 0:01:08]}  Qc8 {[%clk 0:00:16]} 37. Qf3 {[%clk 0:01:01]}  Qc7 {[%clk 0:00:12]} 38. Ra1 {[%clk 0:00:50]}  Rc8 {[%clk 0:00:08]} 39. Ra2 {[%clk 0:00:46]}  Qc6 {[%clk 0:00:06]} 40. Qf5 {[%clk 0:00:42]}  g6 {[%clk 0:00:04]} 41. Qf4 {[%clk 0:00:38]}  Kg7 {[%clk 0:00:05]} 42. Re7 {[%clk 0:00:32]}  Rd8 {[%clk 0:00:03]} 43. Rxf7+ {[%clk 0:00:31]}  Kxf7 {[%clk 0:00:03]} 44. Ne5+ {[%clk 0:00:30]} 1-0


[Site "https://www.chess.com"]

[Event "Titled Tuesday Blitz February 28 Late 2023"]
[White "Dourerassou, Jonathan"]
[Black "Fedoseev, Vladimir"]
[WhiteFideId "628050"]
[BlackFideId "24130737"]
[WhiteElo "2499"]
[BlackElo "2752"]
[Result "0-1"]
[Round "03"]
[TimeControl "180+2"]
[Date "2023.02.28"]
[WhiteClock "0:00:12"]
[BlackClock "0:00:18"]

1. d4 {[%clk 0:02:54]}  Nf6 {[%clk 0:02:13]} 2. Nf3 {[%clk 0:02:52]}  e6 {[%clk 0:02:14]} 3. Bg5 {[%clk 0:02:49]}  h6 {[%clk 0:02:13]} 4. Bxf6 {[%clk 0:02:48]}  Qxf6 {[%clk 0:02:14]} 5. e4 {[%clk 0:02:48]}  d5 {[%clk 0:02:14]} 6. e5 {[%clk 0:02:39]}  Qd8 {[%clk 0:02:14]} 7. Nbd2 {[%clk 0:02:39]}  c5 {[%clk 0:02:13]} 8. c3 {[%clk 0:02:40]}  Qb6 {[%clk 0:02:12]} 9. Qb3 {[%clk 0:02:33]}  Bd7 {[%clk 0:02:12]} 10. Be2 {[%clk 0:02:30]}  Nc6 {[%clk 0:02:04]} 11. O-O {[%clk 0:02:27]}  Qxb3 {[%clk 0:01:53]} 12. Nxb3 {[%clk 0:02:24]}  c4 {[%clk 0:01:53]} 13. Nbd2 {[%clk 0:02:21]}  b5 {[%clk 0:01:53]} 14. a3 {[%clk 0:02:13]}  a5 {[%clk 0:01:53]} 15. Ne1 {[%clk 0:02:13]}  f5 {[%clk 0:01:41]} 16. exf6 {[%clk 0:02:12]}  gxf6 {[%clk 0:01:41]} 17. f4 {[%clk 0:02:11]}  Bd6 {[%clk 0:01:37]} 18. Nc2 {[%clk 0:02:08]}  f5 {[%clk 0:01:31]} 19. Bh5+ {[%clk 0:02:04]}  Kd8 {[%clk 0:01:31]} 20. g3 {[%clk 0:02:02]}  Kc7 {[%clk 0:01:27]} 21. Nf3 {[%clk 0:01:58]}  b4 {[%clk 0:01:25]} 22. axb4 {[%clk 0:01:56]}  axb4 {[%clk 0:01:25]} 23. Ne5 {[%clk 0:01:52]}  b3 {[%clk 0:01:11]} 24. Ne3 {[%clk 0:01:52]}  Nxe5 {[%clk 0:01:04]} 25. fxe5 {[%clk 0:01:47]}  Be7 {[%clk 0:01:04]} 26. Ng2 {[%clk 0:01:41]}  Rhb8 {[%clk 0:00:54]} 27. h4 {[%clk 0:01:38]}  Ra2 {[%clk 0:00:53]} 28. Rab1 {[%clk 0:01:37]}  Be8 {[%clk 0:00:17]} 29. Bxe8 {[%clk 0:01:24]}  Rxe8 {[%clk 0:00:18]} 30. Nf4 {[%clk 0:01:25]}  Kd7 {[%clk 0:00:18]} 31. Kg2 {[%clk 0:01:21]}  Bd8 {[%clk 0:00:19]} 32. Kh3 {[%clk 0:01:21]}  Ba5 {[%clk 0:00:19]} 33. Nh5 {[%clk 0:01:17]}  Rb8 {[%clk 0:00:18]} 34. g4 {[%clk 0:01:16]}  Rxb2 {[%clk 0:00:18]} 35. Rxb2 {[%clk 0:01:15]}  Bxc3 {[%clk 0:00:19]} 36. Rbb1 {[%clk 0:01:04]}  fxg4+ {[%clk 0:00:18]} 37. Kxg4 {[%clk 0:01:05]}  Bxd4 {[%clk 0:00:18]} 38. Rf7+ {[%clk 0:01:03]}  Kc6 {[%clk 0:00:19]} 39. Re7 {[%clk 0:01:03]}  c3 {[%clk 0:00:19]} 40. Rxe6+ {[%clk 0:01:02]}  Kc5 {[%clk 0:00:20]} 41. Nf4 {[%clk 0:00:49]}  c2 {[%clk 0:00:20]} 42. Rc1 {[%clk 0:00:50]}  Be3 {[%clk 0:00:20]} 43. Rxc2+ {[%clk 0:00:20]}  bxc2 {[%clk 0:00:20]} 44. Ne2 {[%clk 0:00:20]}  d4 {[%clk 0:00:20]} 45. Kf3 {[%clk 0:00:19]}  d3 {[%clk 0:00:20]} 46. Re7 {[%clk 0:00:11]}  dxe2 {[%clk 0:00:18]} 47. Rc7+ {[%clk 0:00:12]}  Kd5 {[%clk 0:00:18]} 0-1


[Site "https://www.chess.com"]

[Event "Titled Tuesday Blitz February 28 Late 2023"]
[White "Golubka, Petro"]
[Black "Svane, Rasmus"]
[WhiteFideId "14114224"]
[BlackFideId "4657101"]
[WhiteElo "2404"]
[BlackElo "2597"]
[Result "0-1"]
[Round "03"]
[TimeControl "180+2"]
[Date "2023.02.28"]
[WhiteClock "0:00:28"]
[BlackClock "0:00:07"]

1. e4 {[%clk 0:02:41]}  c6 {[%clk 0:02:59]} 2. d3 {[%clk 0:02:40]}  d5 {[%clk 0:03:00]} 3. Nf3 {[%clk 0:02:41]}  dxe4 {[%clk 0:02:56]} 4. dxe4 {[%clk 0:02:42]}  Qxd1+ {[%clk 0:02:56]} 5. Kxd1 {[%clk 0:02:43]}  Nf6 {[%clk 0:02:57]} 6. Nfd2 {[%clk 0:02:43]}  g5 {[%clk 0:02:56]} 7. f3 {[%clk 0:02:43]}  h5 {[%clk 0:02:55]} 8. Nc4 {[%clk 0:02:43]}  g4 {[%clk 0:02:55]} 9. Bf4 {[%clk 0:02:43]}  h4 {[%clk 0:02:51]} 10. Nbd2 {[%clk 0:02:41]}  h3 {[%clk 0:02:48]} 11. Ke2 {[%clk 0:02:38]}  Na6 {[%clk 0:02:40]} 12. a4 {[%clk 0:02:34]}  Nc5 {[%clk 0:02:37]} 13. b4 {[%clk 0:02:31]}  Ne6 {[%clk 0:02:36]} 14. Be3 {[%clk 0:02:31]}  Bh6 {[%clk 0:02:28]} 15. Bxh6 {[%clk 0:02:22]}  Rxh6 {[%clk 0:02:29]} 16. Ke3 {[%clk 0:02:12]}  hxg2 {[%clk 0:02:14]} 17. Bxg2 {[%clk 0:02:11]}  gxf3 {[%clk 0:02:14]} 18. Bxf3 {[%clk 0:02:11]}  Ng5 {[%clk 0:02:12]} 19. Ne5 {[%clk 0:01:51]}  Be6 {[%clk 0:02:06]} 20. h4 {[%clk 0:01:47]}  Nxf3 {[%clk 0:02:05]} 21. Ndxf3 {[%clk 0:01:48]}  Rd8 {[%clk 0:01:44]} 22. a5 {[%clk 0:01:41]}  Ng4+ {[%clk 0:01:35]} 23. Nxg4 {[%clk 0:01:40]}  Bxg4 {[%clk 0:01:36]} 24. Ne5 {[%clk 0:01:41]}  Bh5 {[%clk 0:01:19]} 25. a6 {[%clk 0:01:39]}  b6 {[%clk 0:01:17]} 26. Rhg1 {[%clk 0:01:34]}  Kf8 {[%clk 0:01:16]} 27. Raf1 {[%clk 0:01:33]}  Rdd6 {[%clk 0:00:56]} 28. Rf4 {[%clk 0:01:28]}  f6 {[%clk 0:00:56]} 29. Nd3 {[%clk 0:01:25]}  Bf7 {[%clk 0:00:52]} 30. Rgf1 {[%clk 0:01:21]}  Ke8 {[%clk 0:00:50]} 31. e5 {[%clk 0:01:19]}  Re6 {[%clk 0:00:51]} 32. Kd2 {[%clk 0:01:19]}  Bh5 {[%clk 0:00:40]} 33. exf6 {[%clk 0:01:17]}  Rhxf6 {[%clk 0:00:40]} 34. Rf5 {[%clk 0:01:08]}  Rxf5 {[%clk 0:00:33]} 35. Rxf5 {[%clk 0:01:09]}  Re2+ {[%clk 0:00:32]} 36. Kc3 {[%clk 0:01:09]}  Bg6 {[%clk 0:00:32]} 37. Rg5 {[%clk 0:01:01]}  Bxd3 {[%clk 0:00:30]} 38. Kxd3 {[%clk 0:00:59]}  Rh2 {[%clk 0:00:29]} 39. Rg8+ {[%clk 0:00:58]}  Kd7 {[%clk 0:00:29]} 40. Ra8 {[%clk 0:00:59]}  Rh3+ {[%clk 0:00:25]} 41. Kd2 {[%clk 0:00:57]}  Rxh4 {[%clk 0:00:25]} 42. Rxa7+ {[%clk 0:00:57]}  Kd6 {[%clk 0:00:23]} 43. Kc3 {[%clk 0:00:54]}  Rh1 {[%clk 0:00:18]} 44. Kb2 {[%clk 0:00:53]}  Rh4 {[%clk 0:00:19]} 45. c3 {[%clk 0:00:50]}  Rh2+ {[%clk 0:00:18]} 46. Kb3 {[%clk 0:00:50]}  Rh1 {[%clk 0:00:19]} 47. Rb7 {[%clk 0:00:47]}  b5 {[%clk 0:00:17]} 48. a7 {[%clk 0:00:44]}  Ra1 {[%clk 0:00:17]} 49. Kb2 {[%clk 0:00:44]}  Ra6 {[%clk 0:00:17]} 50. Kc2 {[%clk 0:00:44]}  e6 {[%clk 0:00:14]} 51. Kd3 {[%clk 0:00:44]}  Ke5 {[%clk 0:00:13]} 52. Ke3 {[%clk 0:00:44]}  Ra3 {[%clk 0:00:13]} 53. Kd2 {[%clk 0:00:44]}  Ke4 {[%clk 0:00:12]} 54. Kc2 {[%clk 0:00:44]}  e5 {[%clk 0:00:12]} 55. Kb2 {[%clk 0:00:44]}  Ra4 {[%clk 0:00:12]} 56. Kb3 {[%clk 0:00:41]}  Ra6 {[%clk 0:00:12]} 57. c4 {[%clk 0:00:42]}  bxc4+ {[%clk 0:00:03]} 58. Kxc4 {[%clk 0:00:42]}  Ke3 {[%clk 0:00:04]} 59. Kc5 {[%clk 0:00:35]}  e4 {[%clk 0:00:04]} 60. Kd6 {[%clk 0:00:33]}  Kd3 {[%clk 0:00:03]} 61. Kc7 {[%clk 0:00:32]}  e3 {[%clk 0:00:04]} 62. Kb8 {[%clk 0:00:32]}  e2 {[%clk 0:00:03]} 63. Rd7+ {[%clk 0:00:33]}  Kc3 {[%clk 0:00:03]} 64. Re7 {[%clk 0:00:33]}  Kxb4 {[%clk 0:00:03]} 65. a8=Q {[%clk 0:00:29]}  Rxa8+ {[%clk 0:00:04]} 66. Kxa8 {[%clk 0:00:30]}  c5 {[%clk 0:00:05]} 67. Kb7 {[%clk 0:00:28]}  c4 {[%clk 0:00:05]} 68. Kc6 {[%clk 0:00:29]}  c3 {[%clk 0:00:06]} 69. Re4+ {[%clk 0:00:28]}  Kb3 {[%clk 0:00:06]} 70. Kd5 {[%clk 0:00:28]}  c2 {[%clk 0:00:06]} 71. Re3+ {[%clk 0:00:28]}  Kb4 {[%clk 0:00:04]} 72. Re4+ {[%clk 0:00:29]}  Kb5 {[%clk 0:00:05]} 73. Rxe2 {[%clk 0:00:29]}  c1=Q {[%clk 0:00:05]} 74. Re4 {[%clk 0:00:30]}  Qd1+ {[%clk 0:00:05]} 75. Rd4 {[%clk 0:00:30]}  Qf3+ {[%clk 0:00:05]} 76. Re4 {[%clk 0:00:31]}  Qd3+ {[%clk 0:00:05]} 77. Ke5 {[%clk 0:00:30]}  Kc5 {[%clk 0:00:05]} 78. Rf4 {[%clk 0:00:30]}  Qe3+ {[%clk 0:00:06]} 79. Kf5 {[%clk 0:00:31]}  Kd5 {[%clk 0:00:07]} 80. Rg4 {[%clk 0:00:31]}  Qf3+ {[%clk 0:00:07]} 81. Kg5 {[%clk 0:00:31]}  Ke5 {[%clk 0:00:08]} 82. Kh4 {[%clk 0:00:28]}  Qh1+ {[%clk 0:00:07]} 83. Kg5 {[%clk 0:00:28]}  Qh2 {[%clk 0:00:06]} 84. Rh4 {[%clk 0:00:28]}  Qd2+ {[%clk 0:00:06]} 85. Kg4 {[%clk 0:00:27]}  Qg2+ {[%clk 0:00:06]} 86. Kh5 {[%clk 0:00:28]}  Kf5 {[%clk 0:00:07]} 0-1


[Site "https://www.chess.com"]